bitfinex-derivatives/quotes_BTCF0:USTF0_20251030
["timestamp","ask_amount","ask_price","bid_price","bid_amount"]
[1761799474251,0.00207794,109010.0,109000.0,0.6729645]
[1761799474643,0.00207794,109010.0,109000.0,0.6702045]
[1761799474952,0.1596,109040.0,109030.0,0.16161]
[1761799475835,0.1596,109040.0,109030.0,0.52657]
[1761799476356,0.1606,109040.0,109030.0,0.52657]
[1761799477045,0.1596,109040.0,109030.0,0.16161]
[1761799477248,0.18302614,109040.0,109030.0,0.16161]
[1761799477450,0.18302614,109040.0,109030.0,0.52641]
[1761799478153,0.18502614,109040.0,109030.0,0.52641]
[1761799479537,0.10822614,109040.0,109030.0,0.52641]
[1761799479944,0.02542614,109040.0,109030.0,0.52641]
[1761799480949,0.5305537,109040.0,109030.0,0.52641]
[1761799481150,0.4527537,109040.0,109030.0,0.52609]
[1761799481349,0.5295537,109040.0,109030.0,0.52609]
[1761799481657,0.5285537,109040.0,109030.0,0.52593]
[1761799481954,0.5305537,109040.0,109030.0,0.52593]
[1761799482160,0.5295537,109040.0,109030.0,0.16161]
[1761799482457,0.5295537,109040.0,109030.0,0.52589]
[1761799482958,0.5305537,109040.0,109030.0,0.52585]
[1761799483861,0.10497614,109040.0,109030.0,0.52585]
[1761799484157,0.02542614,109040.0,109030.0,0.52585]
[1761799484459,0.18177614,109040.0,109030.0,0.52585]
[1761799484658,0.18177614,109040.0,109030.0,0.52561]
[1761799484957,0.5305537,109040.0,109030.0,0.52557]
[1761799485254,0.55152545,109040.0,109030.0,0.52557]
[1761799485453,0.41208681,109040.0,109030.0,0.52553]
[1761799485757,0.65048573,109040.0,109030.0,0.08317]
[1761799485956,0.15635,109030.0,109020.0,0.45462]
[1761799486158,0.38711506,109030.0,109020.0,0.2021]
[1761799486744,0.17877614,109030.0,109020.0,0.2021]
[1761799486947,0.02242614,109030.0,109020.0,0.2938282]
[1761799487164,0.04963899,109040.0,109030.0,0.1569]
[1761799487348,0.04763915,109040.0,109030.0,0.1569]
[1761799487858,0.25597807,109040.0,109030.0,0.1569]
[1761799488053,0.33452807,109040.0,109030.0,0.1569]
[1761799488360,0.38735632,109040.0,109030.0,0.1569]
[1761799488853,0.42025973,109040.0,109030.0,0.1569]
[1761799489263,0.15635,109030.0,109020.0,0.21133052]
[1761799489448,0.41126319,109030.0,109020.0,0.57501052]
[1761799489960,0.41126319,109030.0,109020.0,0.21133052]
[1761799490956,0.43126319,109030.0,109020.0,0.07846]
[1761799491268,0.15635,109010.0,109000.0,0.20717]
[1761799491446,0.38735632,109010.0,109000.0,0.20717]
[1761799492543,0.38735632,109010.0,109000.0,0.20817]
[1761799492961,0.38735632,109010.0,109000.0,0.21736793]
[1761799493259,0.0226674,109010.0,109000.0,0.21736793]
[1761799493659,0.0226674,109010.0,109000.0,0.21836793]
[1761799497761,0.0226674,109010.0,109000.0,0.31011283]
[1761799497961,0.0226674,109010.0,109000.0,0.31287283]
[1761799498561,0.0226674,109010.0,109000.0,0.21836793]
[1761799498964,0.0226674,109010.0,109000.0,0.58092793]
[1761799499263,0.0226674,109010.0,109000.0,0.67543283]
[1761799499466,0.02385029,109020.0,109010.0,0.2486365]
[1761799499665,0.02385029,109020.0,109010.0,0.1569]
[1761799499862,0.18020029,109020.0,109010.0,0.51934]
[1761799500360,0.18020029,109020.0,109010.0,0.1569]
[1761799500558,0.38853921,109020.0,109010.0,0.51922]
[1761799500757,0.38953921,109020.0,109010.0,0.51922]
[1761799501164,0.36568892,109020.0,109010.0,0.51922]
[1761799501356,0.36568892,109020.0,109010.0,0.1569]
[1761799502262,0.41319892,109020.0,109010.0,0.1569]
[1761799502767,0.36568892,109020.0,109010.0,0.1569]
[1761799504271,0.77535892,109020.0,109010.0,0.1569]
[1761799504971,0.14774,109010.0,108980.0,0.05037628]
[1761799505171,0.35607892,108990.0,108980.0,0.18804628]
[1761799505471,0.35607892,108990.0,108980.0,0.14693409]
[1761799505866,0.35607892,108990.0,108980.0,0.00010628]
[1761799506064,0.14774,108960.0,108950.0,0.20334279]
[1761799506266,0.35607892,108960.0,108950.0,0.13767]
[1761799506565,0.40372,108980.0,108960.0,0.04174]
[1761799506766,0.35607892,108970.0,108960.0,0.17941]
[1761799506965,0.35607892,108970.0,108960.0,0.14705583]
[1761799507155,0.35617315,108970.0,108960.0,0.18879583]
[1761799507558,9.423e-05,108970.0,108960.0,0.28057443]
[1761799507868,0.28527892,108990.0,108980.0,0.17941]
[1761799508177,0.35607892,108990.0,108980.0,0.17941]
[1761799508678,0.07694,108970.0,108960.0,0.26353451]
[1761799508865,0.07698908,108970.0,108960.0,0.26353451]
[1761799509066,0.14778908,108970.0,108960.0,0.19079583]
[1761799509571,0.14778908,108970.0,108960.0,0.18979583]
[1761799510169,0.14778908,108970.0,108960.0,0.18879583]
[1761799510371,0.356128,108970.0,108960.0,0.18879583]
[1761799511082,0.14778908,108970.0,108960.0,0.18879583]
[1761799511462,4.908e-05,108970.0,108960.0,0.28157443]
[1761799511978,4.908e-05,108970.0,108960.0,0.35915072]
[1761799512977,0.35607892,109000.0,108990.0,0.13767]
[1761799513168,0.57583892,109000.0,108990.0,0.13767]
[1761799513369,0.3675,109000.0,108990.0,0.2294233]
[1761799513673,0.07694,109000.0,108990.0,0.2294233]
[1761799514069,0.13359,109010.0,109000.0,0.17484]
[1761799514259,0.13359,109010.0,109000.0,0.2665849]
[1761799514462,0.49467,109020.0,109010.0,0.13375]
[1761799514673,0.49467,109020.0,109000.0,0.2665849]
[1761799514674,0.13359,109010.0,109000.0,0.2665849]
[1761799515060,0.34192892,109010.0,109000.0,0.0658]
[1761799515259,0.34192892,109010.0,108980.0,0.40266]
[1761799515473,0.34192892,109000.0,108990.0,0.13375]
[1761799515870,0.13359,109000.0,108990.0,0.13375]
[1761799516066,0.13359,109000.0,108990.0,0.2255034]
[1761799516374,0.13459,109010.0,109000.0,0.17484]
[1761799516675,0.13359,109010.0,109000.0,0.17484]
[1761799517465,0.13459,109010.0,109000.0,0.17484]
[1761799517665,0.13659,109010.0,109000.0,0.17484]
[1761799518165,0.34492892,109010.0,109000.0,0.13375]
[1761799518364,0.34492892,109010.0,108980.0,0.4941417]
[1761799518671,0.13659,109010.0,108980.0,0.1335017]
[1761799518864,0.34492892,109010.0,108980.0,0.1335017]
[1761799519071,0.13659,109010.0,109000.0,0.17484]
[1761799520764,0.13459,109010.0,109000.0,0.2665851]
[1761799521174,0.001,109010.0,109000.0,0.2665851]
[1761799521377,0.001,109010.0,109000.0,0.47492402]
[1761799521676,0.03190341,109050.0,109040.0,0.17484]
[1761799521677,0.13359,109050.0,109040.0,0.17484]
[1761799521976,0.1561352,109050.0,109040.0,0.13375]
[1761799522281,0.1561352,109050.0,109040.0,0.17484]
[1761799522479,0.0225452,109050.0,109040.0,0.2665517]
[1761799522782,0.0255452,109050.0,109040.0,0.2665517]
[1761799522972,0.0275452,109050.0,109040.0,0.17484]
[1761799523278,0.1611352,109050.0,109040.0,0.18418894]
[1761799523671,0.06711,109030.0,109020.0,0.17484]
[1761799523986,0.57341892,109050.0,109020.0,0.17484]
[1761799524273,0.59596637,109050.0,109020.0,0.2665681]
[1761799524460,0.16113745,109050.0,109040.0,0.17484]
[1761799524665,0.09465745,109050.0,109040.0,0.17484]
[1761799524865,0.02454745,109050.0,109040.0,0.17484]
[1761799525174,0.08965745,109050.0,109040.0,0.17484]
[1761799525678,0.08965745,109050.0,108990.0,0.00999999]
[1761799525679,0.06648,109010.0,108990.0,0.00999999]
[1761799525863,0.66504892,109000.0,108990.0,0.0658]
[1761799526182,0.49335,109000.0,108990.0,0.13375]
[1761799526475,0.42687,109000.0,108990.0,0.13375]
[1761799526875,0.06711,109000.0,108990.0,0.13375]
[1761799527373,0.13359,109000.0,108990.0,0.13375]
[1761799527583,0.24304892,109020.0,108990.0,0.13375]
[1761799527772,0.70156892,109010.0,109000.0,0.13375]
[1761799527969,0.49323,109010.0,109000.0,0.17484]
[1761799528279,0.20833892,109020.0,109000.0,0.10904]
[1761799528475,0.15613108,109020.0,109010.0,0.13375]
[1761799528774,0.34192892,109030.0,109020.0,0.17484]
[1761799528970,0.67435074,109030.0,109020.0,0.17484]
[1761799529370,0.67435074,109030.0,109020.0,0.13375]
[1761799529578,0.36447074,109030.0,109020.0,0.13375]
[1761799530168,0.36447074,109030.0,109020.0,0.17484]
[1761799530970,0.15613182,109030.0,109020.0,0.17484]
[1761799531277,0.36647074,109030.0,109020.0,0.17484]
[1761799532270,0.36647074,109030.0,109020.0,0.13375]
[1761799532467,0.36647074,109030.0,109000.0,0.04109]
[1761799532680,0.34192892,109010.0,109000.0,0.17484]
[1761799532880,0.13359,109010.0,109000.0,0.17484]
[1761799533081,0.34192892,109020.0,109010.0,0.13375]
[1761799533285,0.13359,109020.0,109010.0,0.13375]
[1761799533668,0.002,109030.0,109020.0,0.17484]
[1761799533867,0.003,109030.0,109020.0,0.17484]
[1761799534076,0.02354522,109030.0,109020.0,0.17484]
[1761799534282,0.13459,109030.0,109020.0,0.17484]
[1761799534472,0.13359,109030.0,109020.0,0.17484]
[1761799534676,0.06711,109030.0,109020.0,0.17484]
[1761799534874,0.08965689,109030.0,109020.0,0.17484]
[1761799535075,0.02354689,109030.0,109020.0,0.17484]
[1761799535287,0.001,109030.0,109020.0,0.2693284]
[1761799535476,0.001,109030.0,109020.0,0.2665684]
[1761799536180,0.001,109030.0,109020.0,0.2693284]
[1761799536485,0.24257986,109060.0,109050.0,0.13095]
[1761799536678,0.39139906,109060.0,109050.0,0.13095]
[1761799537189,0.36754877,109060.0,109050.0,0.13095]
[1761799537986,0.37054877,109060.0,109050.0,0.13095]
[1761799538990,0.1396616,109060.0,109050.0,0.14013414]
[1761799539174,0.0081616,109060.0,109050.0,0.14013414]
[1761799539983,0.0081616,109060.0,109050.0,0.23183724]
[1761799540173,0.0101616,109060.0,109050.0,0.23183724]
[1761799540373,0.36368921,109090.0,109080.0,0.06937]
[1761799540583,0.73077711,109090.0,109080.0,0.13095]
[1761799540780,0.72077711,109090.0,109080.0,0.13095]
[1761799541089,0.72077711,109090.0,109080.0,0.16804]
[1761799541583,0.35891426,109090.0,109080.0,0.16804]
[1761799541790,0.23441426,109090.0,109080.0,0.16804]
[1761799541978,0.03441819,109090.0,109080.0,0.2597181]
[1761799542183,0.012,109090.0,109080.0,0.2597181]
[1761799542578,0.012,109090.0,109080.0,0.8597181]
[1761799542885,0.012,109090.0,109080.0,0.46805702]
[1761799543191,0.67383262,109120.0,109110.0,0.13095]
[1761799543381,0.66431734,109120.0,109110.0,0.13095]
[1761799543587,0.04623842,109120.0,109110.0,0.2226027]
[1761799543783,0.02385029,109120.0,109110.0,0.13095]
[1761799544275,0.38607734,109120.0,109110.0,0.13095]
[1761799544482,0.36222705,109120.0,109110.0,0.13996533]
[1761799544782,0.16288813,109120.0,109110.0,0.13996533]
[1761799544987,0.09764813,109120.0,109110.0,0.13095]
[1761799545187,0.10364813,109120.0,109110.0,0.13095]
[1761799545493,0.03738813,109120.0,109110.0,0.13095]
[1761799546188,0.03738813,109120.0,109110.0,0.2226022]
[1761799546391,0.03738813,109120.0,109110.0,0.13095]
[1761799546692,0.015,109120.0,109110.0,0.13095]
[1761799546892,0.03735242,109120.0,109110.0,0.2226022]
[1761799547093,0.03735242,109120.0,109110.0,0.23468493]
[1761799547288,0.015,109120.0,109110.0,0.23192493]
[1761799547679,0.0313423,109120.0,109110.0,0.14127273]
[1761799547887,0.0886023,109120.0,109110.0,0.14527273]
[1761799548087,0.1538423,109120.0,109110.0,0.14527273]
[1761799548387,0.1538423,109120.0,109110.0,0.14427273]
[1761799548593,0.1538423,109120.0,109110.0,0.14527273]
[1761799548894,0.0223423,109120.0,109110.0,0.23692503]
[1761799549084,0.0223423,109120.0,109110.0,0.23968503]
[1761799549281,0.0223423,109120.0,109110.0,0.58833291]
[1761799549486,0.38202212,109140.0,109130.0,0.13095]
[1761799549685,0.47062117,109140.0,109130.0,0.13095]
[1761799549884,0.04481802,109140.0,109130.0,0.2253455]
[1761799550093,0.11410964,109170.0,109160.0,0.16804]
[1761799550398,0.17934964,109170.0,109160.0,0.16804]
[1761799550903,0.06626,109180.0,109170.0,0.13095]
[1761799551101,0.17907327,109180.0,109170.0,0.13095]
[1761799551398,0.1315,109170.0,109160.0,0.13095]
[1761799551692,0.1385,109170.0,109160.0,0.13095]
[1761799551999,0.53472115,109170.0,109140.0,0.1287167]
[1761799552291,0.18307327,109170.0,109160.0,0.16804]
[1761799553394,0.1315,109170.0,109160.0,0.16804]
[1761799553698,0.17907327,109170.0,109160.0,0.16804]
[1761799553896,0.18207327,109170.0,109160.0,0.16804]
[1761799554093,0.1345,109170.0,109160.0,0.16804]
[1761799554294,0.18607327,109170.0,109160.0,0.16804]
[1761799554998,0.18607327,109170.0,109160.0,0.13095]
[1761799555194,0.1385,109170.0,109160.0,0.13095]
[1761799555897,0.53472115,109170.0,109140.0,0.03709]
[1761799556084,0.1315,109150.0,109140.0,0.16804]
[1761799556394,0.83702788,109150.0,109120.0,0.03709]
[1761799556591,0.83702788,109150.0,109120.0,0.1287325]
[1761799556786,0.48838,109150.0,109120.0,0.1287325]
[1761799556990,0.48838,109150.0,109140.0,0.16804]
[1761799557197,0.35688,109150.0,109140.0,0.16804]
[1761799557382,0.42314,109150.0,109140.0,0.16804]
[1761799557585,0.04957327,109170.0,109150.0,0.13095]
[1761799557780,0.1315,109150.0,109140.0,0.10646]
[1761799557993,0.48014788,109150.0,109120.0,0.04009]
[1761799558302,0.48014788,109150.0,109120.0,0.1317341]
[1761799558487,0.1315,109150.0,109140.0,0.16804]
[1761799558686,0.48822,109150.0,109140.0,0.16804]
[1761799558893,0.83686788,109150.0,109140.0,0.13095]
[1761799559295,0.48822,109150.0,109140.0,0.13095]
[1761799559500,0.49022,109150.0,109140.0,0.13095]
[1761799559788,0.49022,109150.0,109120.0,0.1287335]
[1761799560199,0.1315,109130.0,109120.0,0.17104]
[1761799560589,0.1315,109130.0,109120.0,0.16804]
[1761799560790,0.75294115,109150.0,109120.0,0.16804]
[1761799561088,0.75394115,109150.0,109120.0,0.16804]
[1761799561692,0.40529327,109150.0,109120.0,0.16804]
[1761799561991,0.42726347,109150.0,109120.0,0.17104]
[1761799562188,0.1315,109130.0,109120.0,0.17104]
[1761799562397,0.1534702,109130.0,109120.0,0.17104]
[1761799562601,0.0229702,109130.0,109120.0,0.17104]
[1761799563505,0.1544702,109130.0,109120.0,0.17104]
[1761799563801,0.50311808,109130.0,109120.0,0.003]
[1761799564100,0.1285,109120.0,109110.0,0.13095]
[1761799564301,0.1504702,109120.0,109110.0,0.13095]
[1761799564603,0.0219702,109120.0,109110.0,0.13095]
[1761799564804,0.40381327,109130.0,109120.0,0.2439039]
[1761799564805,0.35624,109130.0,109120.0,0.2439039]
[1761799564992,0.02199205,109130.0,109120.0,0.2439039]
[1761799565303,0.02199205,109130.0,109120.0,0.15226]
[1761799565701,0.08491205,109130.0,109120.0,0.15226]
[1761799565910,0.02299205,109130.0,109120.0,0.15226]
[1761799566902,0.29981327,109130.0,109120.0,0.06078]
[1761799567095,0.15418,109120.0,109110.0,0.004]
[1761799567291,0.92852916,109120.0,109110.0,0.004]
[1761799567602,0.92852916,109120.0,109110.0,0.11876]
[1761799567603,0.54494128,109120.0,109110.0,0.11876]
[1761799567902,0.02199205,109120.0,109110.0,0.11876]
[1761799568108,0.54795457,109130.0,109120.0,0.15226]
[1761799568615,0.84785322,109130.0,109120.0,0.15226]
[1761799568804,0.06192,109110.0,109100.0,0.16502017]
[1761799569001,0.14328534,109110.0,109100.0,0.16502017]
[1761799569304,0.08096534,109110.0,109100.0,0.16502017]
[1761799569506,0.02204534,109110.0,109100.0,0.16502017]
[1761799569902,0.02104534,109110.0,109100.0,0.16502017]
[1761799570711,0.02104534,109110.0,109100.0,0.16802017]
[1761799570905,0.14228534,109110.0,109100.0,0.16802017]
[1761799572311,0.14228534,109110.0,109100.0,0.13093017]
[1761799572697,0.14228534,109110.0,109100.0,0.16443017]
[1761799573308,0.02104534,109110.0,109100.0,0.16443017]
[1761799573807,0.02104534,109110.0,109100.0,0.16143017]
[1761799574003,0.02104534,109110.0,109100.0,0.25309117]
[1761799574399,0.02104534,109110.0,109100.0,0.25585117]
[1761799574604,0.04777734,109130.0,109120.0,0.14416]
[1761799574605,0.16278734,109130.0,109120.0,0.14416]
[1761799575612,0.04777734,109130.0,109120.0,0.2358039]
[1761799575910,0.10496734,109130.0,109120.0,0.14416]
[1761799576301,0.51243522,109130.0,109120.0,0.14416]
[1761799576700,0.05619,109110.0,109100.0,0.04367017]
[1761799576908,0.05619,109110.0,109100.0,0.15395017]
[1761799577103,0.11501,109110.0,109100.0,0.15395017]
[1761799577306,0.11501,109110.0,109100.0,0.15295017]
[1761799577504,0.45916734,109120.0,109110.0,0.11028]
[1761799577708,0.41139,109120.0,109110.0,0.11028]
[1761799578205,0.47113,109130.0,109120.0,0.14416]
[1761799578413,0.47013,109130.0,109120.0,0.14416]
[1761799578613,0.47013,109130.0,109120.0,0.05469]
[1761799578910,0.81877788,109130.0,109120.0,0.05469]
[1761799579209,0.81877788,109130.0,109100.0,0.13633067]
[1761799579412,0.81877788,109130.0,109120.0,0.05469]
[1761799579811,0.83877788,109130.0,109100.0,0.04467017]
[1761799580114,0.83977788,109130.0,109100.0,0.04267017]
[1761799580708,0.84077788,109130.0,109100.0,0.04267017]
[1761799581217,0.83977788,109130.0,109100.0,0.04367017]
[1761799581511,0.83877788,109130.0,109100.0,0.04367017]
[1761799582412,0.8479865,109130.0,109100.0,0.04367017]
[1761799582610,0.83877788,109130.0,109100.0,0.04367017]
[1761799583306,0.05619,109110.0,109100.0,0.04367017]
[1761799583609,0.35512,109130.0,109100.0,0.15433017]
[1761799583809,0.11501,109110.0,109100.0,0.15433017]
[1761799584804,0.11501,109110.0,109100.0,0.15333017]
[1761799585207,0.11601,109110.0,109100.0,0.15333017]
[1761799585403,0.05719,109110.0,109100.0,0.15333017]
[1761799585609,0.001,109110.0,109100.0,0.24499147]
[1761799585820,0.001,109110.0,109100.0,0.15333017]
[1761799586007,0.41071,109120.0,109110.0,0.11028]
[1761799586208,0.46953,109120.0,109110.0,0.11028]
[1761799586610,0.49129743,109120.0,109110.0,0.11028]
[1761799586816,0.46953,109120.0,109110.0,0.11028]
[1761799587418,0.35946788,109140.0,109110.0,0.11028]
[1761799587724,0.46941,109130.0,109120.0,0.14416]
[1761799587908,0.49117458,109130.0,109120.0,0.14416]
[1761799589015,0.49217458,109130.0,109120.0,0.14416]
[1761799589514,0.13777458,109130.0,109120.0,0.14416]
[1761799590212,0.11601,109130.0,109120.0,0.14416]
[1761799590816,0.11801,109130.0,109120.0,0.14416]
[1761799591316,0.05919,109130.0,109120.0,0.2358038]
[1761799591519,0.003,109130.0,109120.0,0.2358038]
[1761799591725,0.38335788,109160.0,109140.0,0.03388]
[1761799591911,0.19999608,109150.0,109140.0,0.235787]
[1761799592222,0.02175871,109150.0,109140.0,0.235787]
[1761799592423,0.46901,109160.0,109150.0,0.11028]
[1761799592723,0.49076277,109160.0,109150.0,0.11028]
[1761799592923,0.85656277,109160.0,109150.0,0.11028]
[1761799593520,0.85856277,109160.0,109150.0,0.11028]
[1761799594030,0.85856277,109160.0,109150.0,0.11921869]
[1761799594526,0.86156277,109160.0,109150.0,0.11921869]
[1761799595729,0.86156277,109160.0,109150.0,0.21083739]
[1761799595926,0.38575277,109160.0,109150.0,0.57163739]
[1761799596825,0.03175277,109160.0,109150.0,0.57163739]
[1761799597217,0.3608,109190.0,109170.0,0.10528]
[1761799597430,0.49020512,109190.0,109180.0,0.13572]
[1761799598228,0.49020512,109190.0,109180.0,0.2273134]
[1761799598427,0.38553512,109190.0,109180.0,0.13572]
[1761799599126,0.43914512,109190.0,109180.0,0.13572]
[1761799599335,0.02873512,109190.0,109180.0,0.2273143]
[1761799599531,0.02873512,109190.0,109180.0,0.5881143]
[1761799599718,0.02173512,109190.0,109180.0,0.5881143]
[1761799599927,0.02173512,109190.0,109180.0,1.1911143]
[1761799600118,0.02173512,109190.0,109180.0,1.5443943]
[1761799600523,0.02173512,109190.0,109180.0,1.62111641]
[1761799600717,0.02173512,109190.0,109180.0,1.52676211]
[1761799601023,0.02173512,109190.0,109180.0,0.11028]
[1761799601024,0.838853,109190.0,109180.0,0.11028]
[1761799601227,0.49020512,109190.0,109180.0,0.14072]
[1761799601526,0.38253512,109190.0,109180.0,0.13872]
[1761799601727,0.38253512,109190.0,109180.0,0.5931145]
[1761799601728,0.02173512,109190.0,109180.0,0.5931145]
[1761799602421,0.02173512,109190.0,109180.0,0.5921145]
[1761799602617,0.02173512,109190.0,109180.0,0.50052]
[1761799602822,0.49020512,109190.0,109180.0,0.13972]
[1761799603232,0.02173512,109190.0,109180.0,0.13972]
[1761799603440,0.02173512,109190.0,109180.0,0.2333147]
[1761799603632,0.02173512,109190.0,109180.0,0.5941147]
[1761799603837,0.50038481,109220.0,109210.0,0.10528]
[1761799604336,0.03191481,109220.0,109210.0,0.45816]
[1761799604526,0.40857734,109230.0,109220.0,0.13572]
[1761799604527,0.50038481,109230.0,109220.0,0.13572]
[1761799604833,0.50038481,109230.0,109220.0,1.63572]
[1761799605023,0.03191481,109230.0,109220.0,1.99652]
[1761799605330,0.50038481,109230.0,109220.0,0.13572]
[1761799605533,0.85314481,109230.0,109220.0,0.10528]
[1761799605729,0.86900734,109230.0,109220.0,0.14495441]
[1761799605928,1.21765522,109230.0,109220.0,0.06431441]
[1761799606131,0.87200734,109230.0,109220.0,0.06431441]
[1761799606328,1.22065522,109230.0,109200.0,1.89124]
[1761799606529,0.10767,109210.0,109200.0,1.53044]
[1761799606735,0.46847,109210.0,109200.0,1.53044]
[1761799606929,0.46847,109210.0,109200.0,0.03044]
[1761799607227,1.20161093,109210.0,109180.0,0.39124]
[1761799607422,0.46847,109200.0,109190.0,0.10528]
[1761799607937,0.05661,109200.0,109190.0,0.10528]
[1761799608437,1.06055305,109210.0,109200.0,0.13572]
[1761799608638,1.06055305,109210.0,109180.0,1.90039772]
[1761799608827,0.46847,109200.0,109190.0,0.10528]
[1761799609028,0.10767,109200.0,109190.0,0.10528]
[1761799610028,0.13156778,109200.0,109190.0,0.10528]
[1761799610429,0.02389778,109200.0,109190.0,0.10728]
[1761799610633,0.13156778,109200.0,109190.0,0.10728]
[1761799610937,0.02389778,109200.0,109190.0,0.46808]
[1761799611130,0.02389778,109200.0,109190.0,0.5624261]
[1761799611329,0.02389778,109200.0,109190.0,0.5596661]
[1761799611524,0.02389778,109200.0,109190.0,0.46808]
[1761799611724,0.02389778,109200.0,109190.0,0.9119061]
[1761799612623,0.02389778,109200.0,109190.0,1.1196161]
[1761799613224,0.02389778,109200.0,109190.0,1.1223761]
[1761799613648,0.02389778,109200.0,109190.0,1.1196161]
[1761799613839,0.02389778,109210.0,109200.0,0.2272979]
[1761799614042,0.02389778,109210.0,109200.0,0.5880979]
[1761799614234,0.02389778,109210.0,109200.0,0.7985679]
[1761799614537,0.02389778,109210.0,109200.0,0.7958079]
[1761799614935,0.02389778,109210.0,109200.0,0.49652]
[1761799615137,0.03185305,109210.0,109200.0,0.39124]
[1761799615440,0.03185305,109210.0,109200.0,0.5910979]
[1761799616033,0.03185305,109210.0,109200.0,0.5920979]
[1761799617933,0.03185305,109210.0,109200.0,0.9438579]
[1761799619341,0.03185305,109210.0,109200.0,0.5830579]
[1761799619541,0.72395734,109210.0,109200.0,0.05908]
[1761799619732,0.74540048,109210.0,109200.0,0.05908]
[1761799620048,1.09688048,109210.0,109200.0,0.004]
[1761799620547,1.09688048,109210.0,109200.0,0.13972]
[1761799620941,1.09688048,109210.0,109200.0,0.004]
[1761799621933,1.04910314,109210.0,109200.0,0.003]
[1761799622250,0.53781177,109210.0,109200.0,0.13872]
[1761799622448,0.88909177,109210.0,109200.0,0.2302979]
[1761799622651,0.53781177,109210.0,109200.0,0.13872]
[1761799622851,0.88909177,109210.0,109200.0,0.13872]
[1761799623151,0.84119314,109210.0,109200.0,0.13872]
[1761799623351,0.12911314,109210.0,109200.0,0.13572]
[1761799623552,0.84119314,109210.0,109200.0,0.13572]
[1761799623745,1.09680177,109210.0,109190.0,0.3608]
[1761799623947,0.42097223,109200.0,109190.0,0.41588]
[1761799624141,0.05339674,109200.0,109190.0,0.4045759]
[1761799624346,0.3927536,109200.0,109190.0,0.1968659]
[1761799624548,0.41419674,109200.0,109190.0,0.1968659]
[1761799624850,0.52012674,109200.0,109190.0,0.1968659]
[1761799625147,0.74378177,109200.0,109190.0,0.10528]
[1761799625450,0.10185,109190.0,109180.0,1.53959772]
[1761799625653,0.12329314,109190.0,109180.0,1.53959772]
[1761799625953,1.08978177,109190.0,109180.0,0.00915772]
[1761799626251,1.08978177,109190.0,109160.0,0.39124]
[1761799626252,0.10185,109170.0,109160.0,0.13083]
[1761799626556,1.06678696,109170.0,109140.0,0.48295099]
[1761799626755,0.48663382,109160.0,109150.0,0.10039]
[1761799626961,0.71578696,109160.0,109150.0,1.60039]
[1761799627460,0.71478696,109160.0,109150.0,1.60039]
[1761799627757,0.50707696,109160.0,109150.0,1.60943887]
[1761799628264,0.09795696,109160.0,109150.0,1.60943887]
[1761799628446,0.48409314,109160.0,109150.0,1.60943887]
[1761799629142,0.12429314,109160.0,109150.0,1.60943887]
[1761799629340,0.02244314,109160.0,109150.0,2.06185827]
[1761799630141,0.02244314,109160.0,109150.0,2.62308827]
[1761799630341,0.02244314,109160.0,109150.0,0.82375887]
[1761799630555,0.12429314,109160.0,109150.0,0.82095887]
[1761799630754,0.12429314,109160.0,109150.0,0.47223887]
[1761799631257,0.12429314,109160.0,109150.0,0.47023887]
[1761799631456,0.12429314,109160.0,109150.0,0.47323887]
[1761799631656,0.12329314,109160.0,109150.0,0.11243887]
[1761799631854,0.12329314,109160.0,109150.0,0.11343887]
[1761799632160,0.07397314,109160.0,109150.0,0.11343887]
[1761799632341,0.02144314,109160.0,109150.0,0.56585827]
[1761799632548,0.85911081,109170.0,109160.0,0.12903]
[1761799633256,1.06682081,109170.0,109160.0,0.05454]
[1761799633558,1.06682081,109170.0,109160.0,0.1287]
[1761799633764,1.06682081,109170.0,109150.0,0.00904887]
[1761799634062,0.4491,109160.0,109150.0,0.09492]
[1761799634264,0.47057699,109160.0,109150.0,0.09492]
[1761799634566,0.02147699,109160.0,109150.0,0.7550495]
[1761799635043,0.02147699,109160.0,109150.0,0.76703586]
[1761799635358,0.001,109170.0,109160.0,0.213821]
[1761799635558,0.001,109170.0,109160.0,0.574621]
[1761799635758,0.02247388,109170.0,109160.0,1.132731]
[1761799636157,0.02247388,109170.0,109160.0,1.135491]
[1761799636356,0.02398382,109190.0,109180.0,0.2138042]
[1761799636542,0.02398382,109190.0,109180.0,1.1326342]
[1761799636746,0.02398382,109200.0,109190.0,0.1865059]
[1761799636948,0.02398382,109200.0,109180.0,0.47249]
[1761799636949,0.0883,109190.0,109180.0,0.47249]
[1761799637154,0.47303284,109190.0,109180.0,0.47249]
[1761799637444,0.0883,109170.0,109160.0,0.12621]
[1761799637661,0.4491,109170.0,109160.0,0.12321]
[1761799638258,0.4491,109170.0,109160.0,0.12221]
[1761799639360,0.0883,109170.0,109160.0,0.12221]
[1761799639557,0.4491,109170.0,109160.0,0.12221]
[1761799639756,0.4491,109170.0,109160.0,0.09492]
[1761799639958,0.4491,109170.0,109160.0,0.04805]
[1761799640260,1.00685,109170.0,109160.0,0.04905]
[1761799640857,0.4491,109170.0,109160.0,0.09592]
[1761799641063,0.0893,109170.0,109160.0,0.2138211]
[1761799641662,0.001,109170.0,109160.0,0.2138211]
[1761799641960,0.001,109170.0,109160.0,0.5638211]
[1761799642164,0.4491,109180.0,109170.0,0.09492]
[1761799643845,0.4501,109180.0,109170.0,0.09492]
[1761799644053,0.4701,109180.0,109170.0,0.09492]
[1761799644259,0.4501,109180.0,109170.0,0.09492]
[1761799644459,0.4701,109180.0,109170.0,0.09492]
[1761799644660,0.4501,109180.0,109170.0,0.09492]
[1761799644857,0.4701,109180.0,109170.0,0.09492]
[1761799645360,0.0883,109170.0,109160.0,0.04805]
[1761799645557,0.65681,109170.0,109160.0,0.04805]
[1761799645758,0.4491,109170.0,109160.0,0.12221]
[1761799646456,0.4491,109170.0,109160.0,0.04805]
[1761799646662,0.0883,109150.0,109140.0,0.12544629]
[1761799646851,0.65581,109150.0,109140.0,0.12544629]
[1761799647059,0.4481,109150.0,109140.0,0.12544629]
[1761799647570,0.4481,109150.0,109140.0,0.21707419]
[1761799647965,0.4481,109150.0,109140.0,0.21807419]
[1761799648165,0.40493,109160.0,109150.0,0.04687]
[1761799648365,0.4491,109160.0,109150.0,0.09492]
[1761799650172,0.4491,109160.0,109150.0,0.10408975]
[1761799650566,0.4511,109160.0,109150.0,0.10408975]
[1761799650768,0.04613,109160.0,109150.0,0.19570915]